[Event "Titled Tuesday Blitz February 15 Late 2022"]
[White "Proudian, Armen"]
[Black "Antova, Gabriela"]
[WhiteFideId "2130734"]
[BlackFideId "2915235"]
[WhiteElo "2380"]
[BlackElo "2184"]
[Result "0-1"]
[Round "05"]
[TimeControl "180+1"]
[Date "2022.02.16"]
[WhiteClock "0:01:00"]
[BlackClock "0:00:06"]

1. e4 {[%clk 0:03:00]}  c5 {[%clk 0:02:59]} 2. Nf3 {[%clk 0:03:00]}  Nc6 {[%clk 0:02:58]} 3. d4 {[%clk 0:03:00]}  cxd4 {[%clk 0:02:57]} 4. Nxd4 {[%clk 0:03:01]}  e5 {[%clk 0:02:57]} 5. Nb5 {[%clk 0:03:01]}  d6 {[%clk 0:02:52]} 6. a4 {[%clk 0:03:00]}  Be6 {[%clk 0:02:37]} 7. N1c3 {[%clk 0:02:59]}  a6 {[%clk 0:02:34]} 8. Na3 {[%clk 0:02:59]}  Nf6 {[%clk 0:02:20]} 9. Bg5 {[%clk 0:03:00]}  Be7 {[%clk 0:02:18]} 10. Bxf6 {[%clk 0:03:00]}  Bxf6 {[%clk 0:02:18]} 11. Nd5 {[%clk 0:03:01]}  Bg5 {[%clk 0:02:11]} 12. Bc4 {[%clk 0:03:00]}  O-O {[%clk 0:02:06]} 13. O-O {[%clk 0:03:01]}  Kh8 {[%clk 0:02:05]} 14. c3 {[%clk 0:02:56]}  Rc8 {[%clk 0:01:55]} 15. Qd3 {[%clk 0:02:47]}  f5 {[%clk 0:01:47]} 16. Rad1 {[%clk 0:02:47]}  fxe4 {[%clk 0:01:34]} 17. Qxe4 {[%clk 0:02:48]}  Bf5 {[%clk 0:01:34]} 18. Qe2 {[%clk 0:02:48]}  Qe8 {[%clk 0:01:31]} 19. Nb6 {[%clk 0:02:38]}  Rd8 {[%clk 0:01:28]} 20. Bd5 {[%clk 0:02:39]}  Qg6 {[%clk 0:01:27]} 21. Nac4 {[%clk 0:02:34]}  h5 {[%clk 0:01:24]} 22. f3 {[%clk 0:02:26]}  h4 {[%clk 0:01:23]} 23. Be4 {[%clk 0:02:22]}  Bf4 {[%clk 0:01:14]} 24. Bxf5 {[%clk 0:02:19]}  Rxf5 {[%clk 0:01:14]} 25. Qe4 {[%clk 0:02:14]}  Kh7 {[%clk 0:00:54]} 26. Rxd6 {[%clk 0:02:01]}  Rxd6 {[%clk 0:00:40]} 27. Nxd6 {[%clk 0:02:02]}  Rf6 {[%clk 0:00:26]} 28. Qxg6+ {[%clk 0:02:01]}  Kxg6 {[%clk 0:00:24]} 29. Nxb7 {[%clk 0:02:00]}  Be3+ {[%clk 0:00:23]} 30. Kh1 {[%clk 0:01:59]}  Bxb6 {[%clk 0:00:24]} 31. b4 {[%clk 0:01:57]}  Rf7 {[%clk 0:00:24]} 32. Nd6 {[%clk 0:01:57]}  Rd7 {[%clk 0:00:24]} 33. Nc4 {[%clk 0:01:55]}  Bc7 {[%clk 0:00:22]} 34. b5 {[%clk 0:01:55]}  axb5 {[%clk 0:00:22]} 35. axb5 {[%clk 0:01:56]}  Na5 {[%clk 0:00:22]} 36. Nxa5 {[%clk 0:01:37]}  Bxa5 {[%clk 0:00:23]} 37. c4 {[%clk 0:01:38]}  Bb6 {[%clk 0:00:21]} 38. h3 {[%clk 0:01:31]}  Kf5 {[%clk 0:00:20]} 39. Kh2 {[%clk 0:01:31]}  Rd2 {[%clk 0:00:19]} 40. Re1 {[%clk 0:01:30]}  Rc2 {[%clk 0:00:19]} 41. Re4 {[%clk 0:01:21]}  g5 {[%clk 0:00:19]} 42. Re1 {[%clk 0:01:11]}  Bf2 {[%clk 0:00:13]} 43. Rb1 {[%clk 0:01:11]}  Bb6 {[%clk 0:00:11]} 44. Rb4 {[%clk 0:01:09]}  Rc1 {[%clk 0:00:11]} 45. c5 {[%clk 0:00:58]}  Bxc5 {[%clk 0:00:11]} 46. b6 {[%clk 0:00:58]}  Bg1+ {[%clk 0:00:04]} 47. Kh1 {[%clk 0:00:59]}  Bxb6+ {[%clk 0:00:05]} 48. Kh2 {[%clk 0:00:59]}  Bg1+ {[%clk 0:00:05]} 49. Kh1 {[%clk 0:01:00]}  Bf2+ {[%clk 0:00:05]} 50. Kh2 {[%clk 0:01:00]}  Bg3# {[%clk 0:00:06]} 0-1


[Site "https://www.chess.com"]

[Event "Titled Tuesday Blitz February 15 Late 2022"]
[White "Przybylski, Wojciech"]
[Black "Goryachkina, Aleksandra"]
[WhiteFideId "1117599"]
[BlackFideId "4147103"]
[WhiteElo "2133"]
[BlackElo "2426"]
[Result "1/2-1/2"]
[Round "05"]
[TimeControl "180+1"]
[Date "2022.02.16"]
[WhiteClock "0:00:11"]
[BlackClock "0:00:08"]

1. e4 {[%clk 0:03:00]}  c5 {[%clk 0:02:59]} 2. Nf3 {[%clk 0:03:00]}  e6 {[%clk 0:02:59]} 3. b3 {[%clk 0:02:59]}  d5 {[%clk 0:02:57]} 4. exd5 {[%clk 0:02:58]}  exd5 {[%clk 0:02:57]} 5. d4 {[%clk 0:02:58]}  Nc6 {[%clk 0:02:54]} 6. Be2 {[%clk 0:02:51]}  Nf6 {[%clk 0:02:51]} 7. O-O {[%clk 0:02:51]}  Be7 {[%clk 0:02:43]} 8. Bb2 {[%clk 0:02:45]}  O-O {[%clk 0:02:42]} 9. dxc5 {[%clk 0:02:44]}  Bxc5 {[%clk 0:02:41]} 10. a3 {[%clk 0:02:38]}  Bg4 {[%clk 0:02:31]} 11. h3 {[%clk 0:02:35]}  Bh5 {[%clk 0:02:30]} 12. Nbd2 {[%clk 0:02:29]}  Ne4 {[%clk 0:02:26]} 13. b4 {[%clk 0:02:27]}  Bb6 {[%clk 0:02:24]} 14. Nxe4 {[%clk 0:02:11]}  dxe4 {[%clk 0:02:24]} 15. Ne5 {[%clk 0:02:10]}  Bxe2 {[%clk 0:02:01]} 16. Qxe2 {[%clk 0:02:11]}  Nxe5 {[%clk 0:01:58]} 17. Bxe5 {[%clk 0:02:10]}  Qd5 {[%clk 0:01:54]} 18. Bb2 {[%clk 0:02:04]}  f5 {[%clk 0:01:51]} 19. c4 {[%clk 0:02:03]}  Qf7 {[%clk 0:01:51]} 20. Be5 {[%clk 0:01:52]}  Rae8 {[%clk 0:01:50]} 21. Bf4 {[%clk 0:01:51]}  h6 {[%clk 0:01:49]} 22. h4 {[%clk 0:01:39]}  Bc7 {[%clk 0:01:34]} 23. Bxc7 {[%clk 0:01:20]}  Qxc7 {[%clk 0:01:35]} 24. Rad1 {[%clk 0:01:14]}  f4 {[%clk 0:01:32]} 25. Rd4 {[%clk 0:01:00]}  f3 {[%clk 0:01:28]} 26. Qe3 {[%clk 0:00:58]}  Qc6 {[%clk 0:01:18]} 27. g3 {[%clk 0:00:48]}  Qe6 {[%clk 0:00:52]} 28. Kh2 {[%clk 0:00:48]}  Rf5 {[%clk 0:00:50]} 29. Rfd1 {[%clk 0:00:32]}  Kh7 {[%clk 0:00:44]} 30. c5 {[%clk 0:00:28]}  Rh5 {[%clk 0:00:32]} 31. Qf4 {[%clk 0:00:22]}  e3 {[%clk 0:00:19]} 32. Qxe3 {[%clk 0:00:19]}  Qxe3 {[%clk 0:00:18]} 33. fxe3 {[%clk 0:00:19]}  Rxe3 {[%clk 0:00:18]} 34. Rf1 {[%clk 0:00:18]}  Rxa3 {[%clk 0:00:16]} 35. Rf4 {[%clk 0:00:17]}  Rd5 {[%clk 0:00:12]} 36. R4xf3 {[%clk 0:00:17]}  Rd2+ {[%clk 0:00:12]} 37. R3f2 {[%clk 0:00:14]}  Raa2 {[%clk 0:00:10]} 38. Rxd2 {[%clk 0:00:13]}  Rxd2+ {[%clk 0:00:10]} 39. Kh3 {[%clk 0:00:13]}  Rd4 {[%clk 0:00:09]} 40. b5 {[%clk 0:00:13]}  Rb4 {[%clk 0:00:05]} 41. Ra1 {[%clk 0:00:12]}  Rxb5 {[%clk 0:00:04]} 42. Rxa7 {[%clk 0:00:11]}  Rxc5 {[%clk 0:00:04]} 43. Rxb7 {[%clk 0:00:11]}  Rd5 {[%clk 0:00:04]} 44. Rc7 {[%clk 0:00:11]}  Rd6 {[%clk 0:00:05]} 45. Rc5 {[%clk 0:00:11]}  Re6 {[%clk 0:00:05]} 46. Kg4 {[%clk 0:00:10]}  Rd6 {[%clk 0:00:05]} 47. h5 {[%clk 0:00:10]}  Re6 {[%clk 0:00:06]} 48. Kh4 {[%clk 0:00:10]}  Re4+ {[%clk 0:00:06]} 49. g4 {[%clk 0:00:11]}  Re6 {[%clk 0:00:06]} 50. Rd5 {[%clk 0:00:10]}  Rf6 {[%clk 0:00:06]} 51. Rc5 {[%clk 0:00:10]}  Re6 {[%clk 0:00:07]} 52. Rd5 {[%clk 0:00:11]}  Rf6 {[%clk 0:00:07]} 53. Rc5 {[%clk 0:00:11]}  Re6 {[%clk 0:00:08]} 1/2-1/2


[Site "https://www.chess.com"]

[Event "Titled Tuesday Blitz February 15 Late 2022"]
[White "Quirke, Jeffrey"]
[Black "Papayan, Oleg"]
[WhiteFideId "2013029"]
[BlackFideId "4193911"]
[WhiteElo "2194"]
[BlackElo "2038"]
[Result "0-1"]
[Round "05"]
[TimeControl "180+1"]
[Date "2022.02.16"]
[WhiteClock "0:00:37"]
[BlackClock "0:00:31"]

1. c4 {[%clk 0:03:00]}  e5 {[%clk 0:02:56]} 2. Nc3 {[%clk 0:02:59]}  Bb4 {[%clk 0:02:53]} 3. g3 {[%clk 0:02:56]}  Bxc3 {[%clk 0:02:52]} 4. bxc3 {[%clk 0:02:56]}  Nc6 {[%clk 0:02:49]} 5. Bg2 {[%clk 0:02:56]}  d6 {[%clk 0:02:47]} 6. d3 {[%clk 0:02:52]}  Nge7 {[%clk 0:02:47]} 7. Nf3 {[%clk 0:02:52]}  O-O {[%clk 0:02:40]} 8. O-O {[%clk 0:02:50]}  f6 {[%clk 0:02:40]} 9. e4 {[%clk 0:02:48]}  f5 {[%clk 0:02:22]} 10. exf5 {[%clk 0:02:45]}  Bxf5 {[%clk 0:02:21]} 11. Ne1 {[%clk 0:02:33]}  Qd7 {[%clk 0:02:17]} 12. Nc2 {[%clk 0:02:26]}  Bg4 {[%clk 0:01:57]} 13. Qd2 {[%clk 0:02:14]}  Bh3 {[%clk 0:01:43]} 14. Ne3 {[%clk 0:02:13]}  Bxg2 {[%clk 0:01:43]} 15. Kxg2 {[%clk 0:02:14]}  Rf7 {[%clk 0:01:33]} 16. Nd5 {[%clk 0:02:10]}  Raf8 {[%clk 0:01:31]} 17. Qe2 {[%clk 0:01:57]}  Nxd5 {[%clk 0:01:20]} 18. cxd5 {[%clk 0:01:56]}  Ne7 {[%clk 0:01:21]} 19. c4 {[%clk 0:01:55]}  Nf5 {[%clk 0:01:21]} 20. Bb2 {[%clk 0:01:46]}  b6 {[%clk 0:01:21]} 21. Rae1 {[%clk 0:01:41]}  Nh6 {[%clk 0:01:16]} 22. f3 {[%clk 0:01:32]}  Nf5 {[%clk 0:01:04]} 23. Qe4 {[%clk 0:01:23]}  Qd8 {[%clk 0:00:53]} 24. d4 {[%clk 0:01:19]}  exd4 {[%clk 0:00:44]} 25. Bxd4 {[%clk 0:01:19]}  Qg5 {[%clk 0:00:40]} 26. Bc3 {[%clk 0:01:05]}  Re7 {[%clk 0:00:36]} 27. f4 {[%clk 0:00:37]}  Rxe4 {[%clk 0:00:33]} 28. fxg5 {[%clk 0:00:37]}  Ne3+ {[%clk 0:00:31]} 0-1


[Site "https://www.chess.com"]

[Event "Titled Tuesday Blitz February 15 Late 2022"]
[White "Remizov, Yaroslav"]
[Black "Indjic, Aleksandar"]
[WhiteFideId "34134015"]
[BlackFideId "911925"]
[WhiteElo "2360"]
[BlackElo "2616"]
[Result "1-0"]
[Round "05"]
[TimeControl "180+1"]
[Date "2022.02.15"]
[WhiteClock "0:00:10"]
[BlackClock "0:00:11"]

1. e3 {[%clk 0:03:00]}  g6 {[%clk 0:02:57]} 2. a3 {[%clk 0:02:59]}  Bg7 {[%clk 0:02:57]} 3. c4 {[%clk 0:03:00]}  d6 {[%clk 0:02:56]} 4. Qc2 {[%clk 0:02:59]}  e5 {[%clk 0:02:56]} 5. Nf3 {[%clk 0:02:50]}  f5 {[%clk 0:02:53]} 6. b3 {[%clk 0:02:40]}  Nf6 {[%clk 0:02:52]} 7. Bb2 {[%clk 0:02:40]}  O-O {[%clk 0:02:52]} 8. Be2 {[%clk 0:02:40]}  Qe7 {[%clk 0:02:50]} 9. Nc3 {[%clk 0:02:33]}  c6 {[%clk 0:02:49]} 10. d4 {[%clk 0:02:31]}  e4 {[%clk 0:02:48]} 11. Nd2 {[%clk 0:02:30]}  d5 {[%clk 0:02:48]} 12. O-O-O {[%clk 0:02:25]}  Be6 {[%clk 0:02:46]} 13. Kb1 {[%clk 0:02:25]}  Nbd7 {[%clk 0:02:44]} 14. h3 {[%clk 0:02:19]}  h5 {[%clk 0:02:43]} 15. Rc1 {[%clk 0:02:08]}  a6 {[%clk 0:02:40]} 16. f3 {[%clk 0:01:59]}  h4 {[%clk 0:02:37]} 17. Rhf1 {[%clk 0:01:56]}  b5 {[%clk 0:02:32]} 18. c5 {[%clk 0:01:52]}  Nh5 {[%clk 0:02:23]} 19. f4 {[%clk 0:01:19]}  Ng3 {[%clk 0:02:21]} 20. Rf2 {[%clk 0:01:19]}  Bh6 {[%clk 0:02:18]} 21. Nf1 {[%clk 0:01:19]}  g5 {[%clk 0:02:17]} 22. Nxg3 {[%clk 0:01:14]}  hxg3 {[%clk 0:02:16]} 23. Rff1 {[%clk 0:01:14]}  gxf4 {[%clk 0:02:16]} 24. exf4 {[%clk 0:01:15]}  Qh4 {[%clk 0:02:15]} 25. Qd2 {[%clk 0:01:11]}  Bf7 {[%clk 0:02:14]} 26. Qe3 {[%clk 0:01:11]}  Kh7 {[%clk 0:02:12]} 27. Rce1 {[%clk 0:01:06]}  Rg8 {[%clk 0:02:12]} 28. Bc1 {[%clk 0:01:05]}  Nf8 {[%clk 0:02:12]} 29. a4 {[%clk 0:00:51]}  Ne6 {[%clk 0:02:12]} 30. a5 {[%clk 0:00:45]}  Rad8 {[%clk 0:01:42]} 31. Na2 {[%clk 0:00:43]}  Nxd4 {[%clk 0:01:26]} 32. Qxd4 {[%clk 0:00:40]}  Bg7 {[%clk 0:01:26]} 33. Qd2 {[%clk 0:00:25]}  d4 {[%clk 0:01:22]} 34. Nb4 {[%clk 0:00:25]}  Qf6 {[%clk 0:01:18]} 35. Bd1 {[%clk 0:00:23]}  Rd7 {[%clk 0:01:06]} 36. Bb2 {[%clk 0:00:22]}  Rc8 {[%clk 0:00:46]} 37. Bc2 {[%clk 0:00:21]}  Qe7 {[%clk 0:00:43]} 38. Nd3 {[%clk 0:00:16]}  exd3 {[%clk 0:00:28]} 39. Bxd3 {[%clk 0:00:15]}  Qxc5 {[%clk 0:00:20]} 40. Re5 {[%clk 0:00:15]}  Bxe5 {[%clk 0:00:20]} 41. fxe5 {[%clk 0:00:16]}  Bg6 {[%clk 0:00:20]} 42. Rxf5 {[%clk 0:00:15]}  Qe7 {[%clk 0:00:15]} 43. Rh5+ {[%clk 0:00:15]}  Kg8 {[%clk 0:00:15]} 44. Bxg6 {[%clk 0:00:14]}  Qg7 {[%clk 0:00:14]} 45. Bh7+ {[%clk 0:00:14]}  Kf8 {[%clk 0:00:14]} 46. Bf5 {[%clk 0:00:13]}  c5 {[%clk 0:00:13]} 47. Rh7 {[%clk 0:00:11]}  Qxh7 {[%clk 0:00:13]} 48. Bxh7 {[%clk 0:00:12]}  Rxh7 {[%clk 0:00:13]} 49. b4 {[%clk 0:00:12]}  cxb4 {[%clk 0:00:12]} 50. Bxd4 {[%clk 0:00:12]}  Rc4 {[%clk 0:00:11]} 51. e6 {[%clk 0:00:11]}  Re7 {[%clk 0:00:11]} 52. Bc5 {[%clk 0:00:10]}  Rxc5 {[%clk 0:00:11]} 53. Qd8+ {[%clk 0:00:10]} 1-0


[Site "https://www.chess.com"]

[Event "Titled Tuesday Blitz February 15 Late 2022"]
[White "Riehle, Marco"]
[Black "Suder, Jakub"]
[WhiteFideId "12904392"]
[BlackFideId "1195310"]
[WhiteElo "2462"]
[BlackElo "2058"]
[Result "1-0"]
[Round "05"]
[TimeControl "180+1"]
[Date "2022.02.16"]
[WhiteClock "0:00:14"]
[BlackClock "0:00:03"]

1. e4 {[%clk 0:03:00]}  c5 {[%clk 0:02:59]} 2. a3 {[%clk 0:02:59]}  e6 {[%clk 0:02:58]} 3. b4 {[%clk 0:02:59]}  cxb4 {[%clk 0:02:58]} 4. axb4 {[%clk 0:03:00]}  Bxb4 {[%clk 0:02:58]} 5. Bb2 {[%clk 0:03:01]}  Bf8 {[%clk 0:02:54]} 6. Nf3 {[%clk 0:03:00]}  d5 {[%clk 0:02:53]} 7. exd5 {[%clk 0:03:00]}  exd5 {[%clk 0:02:52]} 8. Bd3 {[%clk 0:02:57]}  Nf6 {[%clk 0:02:45]} 9. O-O {[%clk 0:02:55]}  Be7 {[%clk 0:02:44]} 10. Re1 {[%clk 0:02:21]}  O-O {[%clk 0:02:44]} 11. h3 {[%clk 0:02:20]}  Nc6 {[%clk 0:02:40]} 12. Nc3 {[%clk 0:02:19]}  h6 {[%clk 0:02:34]} 13. Ne5 {[%clk 0:02:13]}  Nxe5 {[%clk 0:02:32]} 14. Rxe5 {[%clk 0:02:14]}  Be6 {[%clk 0:02:31]} 15. Qf3 {[%clk 0:02:05]}  Bd6 {[%clk 0:02:28]} 16. Re2 {[%clk 0:02:03]}  a6 {[%clk 0:02:27]} 17. Nd1 {[%clk 0:01:56]}  Re8 {[%clk 0:02:07]} 18. Ne3 {[%clk 0:01:53]}  Bf8 {[%clk 0:02:02]} 19. Rae1 {[%clk 0:01:48]}  Ne4 {[%clk 0:01:58]} 20. Bxe4 {[%clk 0:01:43]}  dxe4 {[%clk 0:01:58]} 21. Qxe4 {[%clk 0:01:44]}  Qd7 {[%clk 0:01:32]} 22. Qf3 {[%clk 0:01:39]}  a5 {[%clk 0:01:26]} 23. d4 {[%clk 0:01:30]}  Qb5 {[%clk 0:01:16]} 24. Ba1 {[%clk 0:01:24]}  Red8 {[%clk 0:00:59]} 25. Rd2 {[%clk 0:01:07]}  Bd5 {[%clk 0:00:44]} 26. Nxd5 {[%clk 0:01:07]}  Rxd5 {[%clk 0:00:40]} 27. Qe2 {[%clk 0:00:59]}  Qxe2 {[%clk 0:00:37]} 28. Rdxe2 {[%clk 0:01:00]}  b5 {[%clk 0:00:36]} 29. Kf1 {[%clk 0:00:51]}  a4 {[%clk 0:00:34]} 30. Rb1 {[%clk 0:00:48]}  Rc8 {[%clk 0:00:32]} 31. g3 {[%clk 0:00:46]}  f6 {[%clk 0:00:27]} 32. Rd2 {[%clk 0:00:40]}  Kf7 {[%clk 0:00:27]} 33. c3 {[%clk 0:00:40]}  Rd7 {[%clk 0:00:20]} 34. Rxb5 {[%clk 0:00:39]}  a3 {[%clk 0:00:20]} 35. Ke2 {[%clk 0:00:35]}  Rdc7 {[%clk 0:00:20]} 36. Kd3 {[%clk 0:00:34]}  Rc4 {[%clk 0:00:19]} 37. Re2 {[%clk 0:00:28]}  R8c7 {[%clk 0:00:18]} 38. g4 {[%clk 0:00:28]}  Ra4 {[%clk 0:00:18]} 39. f4 {[%clk 0:00:28]}  Bd6 {[%clk 0:00:16]} 40. f5 {[%clk 0:00:28]}  Bf4 {[%clk 0:00:17]} 41. Rb3 {[%clk 0:00:25]}  Bc1 {[%clk 0:00:15]} 42. Rc2 {[%clk 0:00:25]}  Bf4 {[%clk 0:00:14]} 43. Ra2 {[%clk 0:00:25]}  Bd6 {[%clk 0:00:13]} 44. Rc2 {[%clk 0:00:24]}  Rac4 {[%clk 0:00:14]} 45. h4 {[%clk 0:00:20]}  Kg8 {[%clk 0:00:13]} 46. h5 {[%clk 0:00:20]}  Kf7 {[%clk 0:00:13]} 47. Rb6 {[%clk 0:00:20]}  Bf8 {[%clk 0:00:12]} 48. Rb5 {[%clk 0:00:19]}  Be7 {[%clk 0:00:12]} 49. Re2 {[%clk 0:00:19]}  Bf8 {[%clk 0:00:12]} 50. Re6 {[%clk 0:00:19]}  Be7 {[%clk 0:00:10]} 51. Reb6 {[%clk 0:00:20]}  Rc8 {[%clk 0:00:07]} 52. Rb7 {[%clk 0:00:20]}  Ra4 {[%clk 0:00:07]} 53. Rd5 {[%clk 0:00:17]}  Re8 {[%clk 0:00:03]} 54. Rdd7 {[%clk 0:00:17]}  Ra6 {[%clk 0:00:02]} 55. c4 {[%clk 0:00:17]}  a2 {[%clk 0:00:03]} 56. c5 {[%clk 0:00:17]}  Ra3+ {[%clk 0:00:03]} 57. Kc2 {[%clk 0:00:17]}  Rh3 {[%clk 0:00:03]} 58. c6 {[%clk 0:00:17]}  Rh2+ {[%clk 0:00:03]} 59. Kb3 {[%clk 0:00:17]}  Rg2 {[%clk 0:00:02]} 60. c7 {[%clk 0:00:15]}  Ra8 {[%clk 0:00:01]} 61. Rxe7+ {[%clk 0:00:15]}  Kg8 {[%clk 0:00:01]} 62. Rxg7+ {[%clk 0:00:15]}  Kh8 {[%clk 0:00:01]} 63. Rh7+ {[%clk 0:00:15]}  Kg8 {[%clk 0:00:02]} 64. Rd7 {[%clk 0:00:14]}  Rg3+ {[%clk 0:00:02]} 65. Kc4 {[%clk 0:00:14]}  Rg1 {[%clk 0:00:03]} 66. Rb8+ {[%clk 0:00:14]} 1-0


[Site "https://www.chess.com"]

[Event "Titled Tuesday Blitz February 15 Late 2022"]
[White "Roque Sola, Jose Luis"]
[Black "Al Mukhaini, Shima"]
[WhiteFideId "5120390"]
[BlackFideId "22005854"]
[WhiteElo "1983"]
[BlackElo "2375"]
[Result "0-1"]
[Round "05"]
[TimeControl "180+1"]
[Date "2022.02.16"]
[WhiteClock "0:00:27"]
[BlackClock "0:01:39"]

1. c4 {[%clk 0:03:00]}  Nf6 {[%clk 0:02:59]} 2. Nc3 {[%clk 0:02:58]}  e6 {[%clk 0:02:59]} 3. e4 {[%clk 0:02:58]}  d5 {[%clk 0:02:54]} 4. e5 {[%clk 0:02:57]}  Ne4 {[%clk 0:02:53]} 5. cxd5 {[%clk 0:02:51]}  Nxc3 {[%clk 0:02:51]} 6. bxc3 {[%clk 0:02:51]}  exd5 {[%clk 0:02:51]} 7. Nf3 {[%clk 0:02:45]}  c5 {[%clk 0:02:50]} 8. d4 {[%clk 0:02:40]}  Nc6 {[%clk 0:02:50]} 9. Bb5 {[%clk 0:02:39]}  Qa5 {[%clk 0:02:48]} 10. Bxc6+ {[%clk 0:02:37]}  bxc6 {[%clk 0:02:49]} 11. Bd2 {[%clk 0:02:34]}  Ba6 {[%clk 0:02:45]} 12. c4 {[%clk 0:02:17]}  Qa3 {[%clk 0:02:45]} 13. cxd5 {[%clk 0:02:15]}  cxd5 {[%clk 0:02:43]} 14. Qb3 {[%clk 0:02:13]}  c4 {[%clk 0:02:32]} 15. Qxa3 {[%clk 0:02:05]}  Bxa3 {[%clk 0:02:33]} 16. Bc3 {[%clk 0:02:05]}  Rb8 {[%clk 0:02:31]} 17. O-O {[%clk 0:02:03]}  Kd7 {[%clk 0:02:29]} 18. Rab1 {[%clk 0:02:01]}  h6 {[%clk 0:02:25]} 19. Rfe1 {[%clk 0:01:40]}  Rb6 {[%clk 0:02:22]} 20. Rxb6 {[%clk 0:01:38]}  axb6 {[%clk 0:02:23]} 21. Rb1 {[%clk 0:01:35]}  Kc6 {[%clk 0:02:21]} 22. Nh4 {[%clk 0:01:25]}  Bc8 {[%clk 0:02:17]} 23. Bb4 {[%clk 0:01:15]}  Bxb4 {[%clk 0:02:16]} 24. Rxb4 {[%clk 0:01:15]}  Be6 {[%clk 0:02:12]} 25. Kf1 {[%clk 0:01:15]}  Ra8 {[%clk 0:02:11]} 26. a4 {[%clk 0:01:14]}  Bd7 {[%clk 0:02:08]} 27. Ke1 {[%clk 0:01:11]}  Kc7 {[%clk 0:02:08]} 28. Kd2 {[%clk 0:01:05]}  g5 {[%clk 0:02:05]} 29. Nf3 {[%clk 0:01:04]}  Bxa4 {[%clk 0:02:03]} 30. Kc3 {[%clk 0:01:03]}  Bb3 {[%clk 0:02:00]} 31. Nd2 {[%clk 0:01:02]}  Bd1 {[%clk 0:01:53]} 32. Nxc4 {[%clk 0:00:49]}  dxc4 {[%clk 0:01:51]} 33. Kxc4 {[%clk 0:00:48]}  Ra5 {[%clk 0:01:48]} 34. d5 {[%clk 0:00:46]}  Ra4 {[%clk 0:01:47]} 35. d6+ {[%clk 0:00:37]}  Kc6 {[%clk 0:01:45]} 36. Rxa4 {[%clk 0:00:34]}  Bxa4 {[%clk 0:01:46]} 37. g3 {[%clk 0:00:33]}  g4 {[%clk 0:01:41]} 38. Kd4 {[%clk 0:00:30]}  Bb3 {[%clk 0:01:40]} 39. Ke4 {[%clk 0:00:30]}  Be6 {[%clk 0:01:39]} 40. Kf4 {[%clk 0:00:30]}  b5 {[%clk 0:01:39]} 41. f3 {[%clk 0:00:28]}  h5 {[%clk 0:01:38]} 42. fxg4 {[%clk 0:00:27]}  hxg4 {[%clk 0:01:39]} 0-1


[Site "https://www.chess.com"]

[Event "Titled Tuesday Blitz February 15 Late 2022"]
[White "Rustemov, Alexander"]
[Black "Carreto Nieto, Giovanni"]
[WhiteFideId "4119002"]
[BlackFideId "5105030"]
[WhiteElo "2772"]
[BlackElo "2221"]
[Result "1-0"]
[Round "05"]
[TimeControl "180+1"]
[Date "2022.02.16"]
[WhiteClock "0:00:32"]
[BlackClock "0:00:09"]

1. d4 {[%clk 0:03:00]}  Nf6 {[%clk 0:02:59]} 2. c4 {[%clk 0:03:00]}  c5 {[%clk 0:02:59]} 3. d5 {[%clk 0:03:00]}  b5 {[%clk 0:03:00]} 4. Nf3 {[%clk 0:02:58]}  Bb7 {[%clk 0:01:39]} 5. Bg5 {[%clk 0:02:41]}  Ne4 {[%clk 0:01:31]} 6. Bh4 {[%clk 0:02:33]}  bxc4 {[%clk 0:01:28]} 7. Nc3 {[%clk 0:01:48]}  Qa5 {[%clk 0:01:26]} 8. Nd2 {[%clk 0:01:42]}  Nxc3 {[%clk 0:01:22]} 9. bxc3 {[%clk 0:01:43]}  Bxd5 {[%clk 0:01:19]} 10. e4 {[%clk 0:01:38]}  Be6 {[%clk 0:01:18]} 11. f4 {[%clk 0:01:32]}  g6 {[%clk 0:01:00]} 12. f5 {[%clk 0:01:25]}  gxf5 {[%clk 0:00:56]} 13. exf5 {[%clk 0:01:26]}  Bxf5 {[%clk 0:00:57]} 14. Qf3 {[%clk 0:01:23]}  Bg7 {[%clk 0:00:29]} 15. Qxf5 {[%clk 0:01:18]}  Bxc3 {[%clk 0:00:25]} 16. Rd1 {[%clk 0:01:08]}  Nc6 {[%clk 0:00:21]} 17. Bxc4 {[%clk 0:01:06]}  e6 {[%clk 0:00:20]} 18. Qf3 {[%clk 0:00:48]}  Rb8 {[%clk 0:00:14]} 19. Bf6 {[%clk 0:00:43]}  Bxd2+ {[%clk 0:00:10]} 20. Ke2 {[%clk 0:00:40]}  Bc3 {[%clk 0:00:09]} 21. Bxc3 {[%clk 0:00:32]} 1-0


[Site "https://www.chess.com"]

[Event "Titled Tuesday Blitz February 15 Late 2022"]
[White "Sadhwani, Raunak"]
[Black "Lugovskoy, Maxim"]
[WhiteFideId "35093487"]
[BlackFideId "24126454"]
[WhiteElo "2616"]
[BlackElo "2444"]
[Result "0-1"]
[Round "05"]
[TimeControl "180+1"]
[Date "2022.02.15"]
[WhiteClock "0:00:11"]
[BlackClock "0:00:37"]

1. d4 {[%clk 0:03:00]}  d5 {[%clk 0:02:59]} 2. Nf3 {[%clk 0:03:01]}  e6 {[%clk 0:02:59]} 3. Bf4 {[%clk 0:03:01]}  Nf6 {[%clk 0:02:59]} 4. e3 {[%clk 0:03:01]}  Be7 {[%clk 0:02:57]} 5. Nbd2 {[%clk 0:03:01]}  O-O {[%clk 0:02:57]} 6. h4 {[%clk 0:03:01]}  c5 {[%clk 0:02:55]} 7. c3 {[%clk 0:03:00]}  Nc6 {[%clk 0:02:55]} 8. h5 {[%clk 0:03:00]}  h6 {[%clk 0:02:52]} 9. Bd3 {[%clk 0:02:58]}  Bd6 {[%clk 0:02:47]} 10. Ne5 {[%clk 0:02:58]}  Bxe5 {[%clk 0:02:41]} 11. dxe5 {[%clk 0:02:48]}  Nd7 {[%clk 0:02:41]} 12. Nf3 {[%clk 0:02:47]}  Qc7 {[%clk 0:02:40]} 13. Bb1 {[%clk 0:02:36]}  Ndxe5 {[%clk 0:02:35]} 14. Nxe5 {[%clk 0:02:36]}  Nxe5 {[%clk 0:02:34]} 15. Qc2 {[%clk 0:02:37]}  f5 {[%clk 0:02:29]} 16. O-O {[%clk 0:02:26]}  b6 {[%clk 0:02:21]} 17. c4 {[%clk 0:02:08]}  Bb7 {[%clk 0:02:16]} 18. Qc3 {[%clk 0:02:07]}  Nf3+ {[%clk 0:01:47]} 19. gxf3 {[%clk 0:02:07]}  Qf7 {[%clk 0:01:48]} 20. cxd5 {[%clk 0:01:28]}  Qxh5 {[%clk 0:01:40]} 21. Bg3 {[%clk 0:01:03]}  Bxd5 {[%clk 0:01:30]} 22. e4 {[%clk 0:00:58]}  Bb7 {[%clk 0:01:25]} 23. Kg2 {[%clk 0:00:41]}  f4 {[%clk 0:01:21]} 24. Bh2 {[%clk 0:00:40]}  Rf6 {[%clk 0:01:16]} 25. Kh1 {[%clk 0:00:37]}  Rd8 {[%clk 0:01:06]} 26. Bc2 {[%clk 0:00:36]}  Ba6 {[%clk 0:00:57]} 27. Rfe1 {[%clk 0:00:17]}  Rd3 {[%clk 0:00:39]} 28. Bxd3 {[%clk 0:00:14]}  Qxf3+ {[%clk 0:00:36]} 29. Kg1 {[%clk 0:00:15]}  Rg6+ {[%clk 0:00:37]} 30. Bg3 {[%clk 0:00:11]}  fxg3 {[%clk 0:00:37]} 0-1


[Site "https://www.chess.com"]